fUST/lending_fUST_20260604
["ID","MTS","AMOUNT","RATE_DAILY","PERIOD"]
[423952768,1780521043000,-500.0,0.00015342,2]
[423952774,1780521043000,-500.0,0.00015368,2]
[423952772,1780521043000,-500.0,0.00015368,2]
[423952778,1780521043000,-500.0,0.00015368,2]
[423952781,1780521043000,-500.0,0.00015368,2]
[423952780,1780521043000,-500.0,0.00015368,2]
[423952783,1780521043000,-846.3,0.00015368,2]
[423952719,1780521043000,-500.0,0.00015094,2]
[423952758,1780521043000,-1536.58,0.00015342,2]
[423952730,1780521043000,-500.0,0.00015342,2]
[423952698,1780521043000,-863.81,0.00015094,2]
[423952724,1780521043000,-500.0,0.00015342,2]
[423952683,1780521043000,-500.0,0.00015094,2]
[423952682,1780521043000,-500.0,0.00015094,2]
[423952685,1780521043000,-500.0,0.00015094,2]
[423952690,1780521043000,-846.3,0.00015094,2]
[423952691,1780521043000,-500.0,0.00015094,2]
[423952684,1780521043000,-500.0,0.00015094,2]
[423952686,1780521043000,-500.0,0.00015094,2]
[423952687,1780521043000,-500.0,0.00015094,2]
[423952689,1780521043000,-500.0,0.00015094,2]
[423952692,1780521043000,-500.0,0.00015094,2]
[423952693,1780521043000,-500.0,0.00015094,2]
[423952688,1780521043000,-500.0,0.00015094,2]
[423952700,1780521043000,-500.0,0.00015094,2]
[423952699,1780521043000,-500.0,0.00015094,2]
[423952776,1780521043000,-500.0,0.00015368,2]
[423952701,1780521043000,-559.46605807,0.00015094,2]
[423952702,1780521043000,-500.0,0.00015094,2]
[423952706,1780521043000,-1559.31,0.00015094,2]
[423952709,1780521043000,-676.0566,0.00015094,2]
[423952713,1780521043000,-579.58,0.00015094,2]
[423952703,1780521043000,-500.0,0.00015094,2]
[423952708,1780521043000,-568.93126574,0.00015094,2]
[423952710,1780521043000,-598.73308816,0.00015094,2]
[423952711,1780521043000,-500.0,0.00015094,2]
[423952704,1780521043000,-500.0,0.00015094,2]
[423952726,1780521043000,-500.0,0.00015342,2]
[423952715,1780521043000,-500.0,0.00015094,2]
[423952728,1780521043000,-500.0,0.00015342,2]
[423952717,1780521043000,-500.0,0.00015094,2]
[423952734,1780521043000,-500.0,0.00015342,2]
[423952787,1780521043000,-500.0,0.00015368,2]
[423952754,1780521043000,-1129.16,0.00015342,2]
[423952785,1780521043000,-500.0,0.00015368,2]
[423952842,1780521043000,-1536.58,0.00015616,2]
[423952835,1780521043000,-500.0,0.00015616,2]
[423952839,1780521043000,-1129.16,0.00015616,2]
[423952845,1780521043000,-648.82,0.00015616,2]
[423952844,1780521043000,-500.0,0.00015616,2]
[423952854,1780521043000,-459.88719643,0.00015616,2]
[423952853,1780521043000,-500.0,0.00015616,2]
[423952856,1780521043000,-366.727283,0.00015633,2]
[423952858,1780521043000,-500.0,0.00015642,2]
[423952859,1780521043000,-500.0,0.00015642,2]
[423952869,1780521043000,-634.76,0.00015642,2]
[423952868,1780521043000,-500.0,0.00015642,2]
[423952866,1780521043000,-863.81,0.00015642,2]
[423952865,1780521043000,-500.0,0.00015642,2]
[423952841,1780521043000,-500.0,0.00015616,2]
[423952864,1780521043000,-500.0,0.00015642,2]
[423952867,1780521043000,-500.0,0.00015642,2]
[423952863,1780521043000,-500.0,0.00015642,2]
[423952860,1780521043000,-500.0,0.00015642,2]
[423952862,1780521043000,-846.3,0.00015642,2]
[423952871,1780521043000,-1559.31,0.00015642,2]
[423952872,1780521043000,-676.0566,0.00015642,2]
[423952870,1780521043000,-500.0,0.00015642,2]
[423952878,1780521043000,-300.47813521,0.0001572,2]
[423952874,1780521043000,-579.58,0.00015642,2]
[423952875,1780521043000,-582.78,0.00015642,2]
[423952876,1780521043000,-500.0,0.00015642,2]
[423952873,1780521043000,-500.0,0.00015642,2]
[423952789,1780521043000,-500.0,0.00015368,2]
[423952877,1780521043000,-500.0,0.00015642,2]
[423952861,1780521043000,-500.0,0.00015642,2]
[423952837,1780521043000,-500.0,0.00015616,2]
[423952879,1780521043000,-500.0,0.0001572,2]
[423952849,1780521043000,-500.0,0.00015616,2]
[423952847,1780521043000,-648.39,0.00015616,2]
[423952803,1780521043000,-676.0566,0.00015368,2]
[423952802,1780521043000,-1559.31,0.00015368,2]
[423952806,1780521043000,-253.55,0.00015368,2]
[423952791,1780521043000,-863.81,0.00015368,2]
[423952808,1780521043000,-500.0,0.00015368,2]
[423952805,1780521043000,-579.58,0.00015368,2]
[423952800,1780521043000,-500.0,0.00015368,2]
[423952809,1780521043000,-500.0,0.00015368,2]
[423952807,1780521043000,-500.0,0.00015368,2]
[423952795,1780521043000,-500.0,0.00015368,2]
[423952798,1780521043000,-284.66352064,0.00015368,2]
[423952797,1780521043000,-500.0,0.00015368,2]
[423952793,1780521043000,-500.0,0.00015368,2]
[423952804,1780521043000,-500.0,0.00015368,2]
[423952814,1780521043000,-1186.35722171,0.00015543,2]
[423952850,1780521043000,-500.0,0.00015616,2]
[423952811,1780521043000,-1000.0,0.00015409,2]
[423952829,1780521043000,-1740.0,0.00015616,2]
[423952832,1780521043000,-500.0,0.00015616,2]
[423952827,1780521043000,-500.0,0.00015616,2]
[423952825,1780521043000,-500.0,0.00015616,2]
[423952822,1780521043000,-500.0,0.00015616,2]
[423952834,1780521043000,-500.0,0.00015616,2]
[423952823,1780521043000,-500.0,0.00015616,2]
[423952820,1780521043000,-500.0,0.00015616,2]
[423952818,1780521043000,-500.0,0.00015616,2]
[423952816,1780521043000,-500.0,0.00015616,2]
[423952813,1780521043000,-244.0,0.00015409,2]
[423952831,1780521043000,-518.64,0.00015616,2]
[423952924,1780521044000,-392.05618562,0.00015722,2]
[423952913,1780521044000,-500.0,0.00015722,2]
[423952925,1780521044000,-500.0,0.00015722,2]
[423952923,1780521044000,-500.0,0.00015722,2]
[423952921,1780521044000,-500.0,0.00015722,2]
[423952915,1780521044000,-500.0,0.00015722,2]
[423952920,1780521044000,-500.0,0.00015722,2]
[423952912,1780521044000,-500.0,0.00015722,2]
[423952911,1780521044000,-500.0,0.00015721,2]
[423952917,1780521044000,-500.0,0.00015722,2]
[423952929,1780521044000,-500.0,0.00015722,2]
[423952919,1780521044000,-500.0,0.00015722,2]
[423952910,1780521044000,-500.0,0.00015721,2]
[423952939,1780521044000,-500.0,0.00015722,2]
[423952941,1780521044000,-500.0,0.00015722,2]
[423952935,1780521044000,-509.52256112,0.00015722,2]
[423952937,1780521044000,-500.0,0.00015722,2]
[423952942,1780521044000,-427.0,0.00015722,2]
[423952931,1780521044000,-500.0,0.00015722,2]
[423952940,1780521044000,-500.0,0.00015722,2]
[423952938,1780521044000,-500.0,0.00015722,2]
[423952943,1780521044000,-500.0,0.00015722,2]
[423952944,1780521044000,-500.0,0.00015722,2]
[423952945,1780521044000,-500.0,0.00015722,2]
[423952948,1780521044000,-500.0,0.00015722,2]
[423952916,1780521044000,-500.0,0.00015722,2]
[423952957,1780521044000,-500.0,0.00015722,2]
[423952927,1780521044000,-500.0,0.00015722,2]
[423952914,1780521044000,-500.0,0.00015722,2]
[423952890,1780521044000,-500.0,0.0001572,2]
[423952909,1780521044000,-500.0,0.00015721,2]
[423952956,1780521044000,-500.0,0.00015722,2]
[423952881,1780521044000,-500.0,0.0001572,2]
[423952882,1780521044000,-500.0,0.0001572,2]
[423952880,1780521044000,-500.0,0.0001572,2]
[423952883,1780521044000,-500.0,0.0001572,2]
[423952885,1780521044000,-500.0,0.0001572,2]
[423952884,1780521044000,-500.0,0.0001572,2]
[423952893,1780521044000,-500.0,0.00015721,2]
[423952894,1780521044000,-500.0,0.00015721,2]
[423952886,1780521044000,-500.0,0.0001572,2]
[423952895,1780521044000,-500.0,0.00015721,2]
[423952896,1780521044000,-500.0,0.00015721,2]
[423952887,1780521044000,-500.0,0.0001572,2]
[423952889,1780521044000,-500.0,0.0001572,2]
[423952891,1780521044000,-500.0,0.0001572,2]
[423952888,1780521044000,-500.0,0.0001572,2]
[423952892,1780521044000,-366.53405608,0.0001572,2]
[423952906,1780521044000,-500.0,0.00015721,2]
[423952897,1780521044000,-500.0,0.00015721,2]
[423952900,1780521044000,-500.0,0.00015721,2]
[423952901,1780521044000,-500.0,0.00015721,2]
[423952898,1780521044000,-500.0,0.00015721,2]
[423952899,1780521044000,-559.13576128,0.00015721,2]
[423952907,1780521044000,-500.0,0.00015721,2]
[423952908,1780521044000,-500.0,0.00015721,2]
[423952903,1780521044000,-500.0,0.00015721,2]
[423952902,1780521044000,-500.0,0.00015721,2]
[423952904,1780521044000,-500.0,0.00015721,2]
[423952905,1780521044000,-500.0,0.00015721,2]
[423952918,1780521044000,-500.0,0.00015722,2]
[423952947,1780521044000,-226.41364325,0.00015722,2]
[423952933,1780521044000,-500.0,0.00015722,2]
[423952954,1780521044000,-500.0,0.00015722,2]
[423952991,1780521044000,-500.0,0.00015722,2]
[423952981,1780521044000,-500.0,0.00015722,2]
[423952984,1780521044000,-500.0,0.00015722,2]
[423952988,1780521044000,-500.0,0.00015722,2]
[423952987,1780521044000,-500.0,0.00015722,2]
[423952986,1780521044000,-500.0,0.00015722,2]
[423952983,1780521044000,-500.0,0.00015722,2]
[423952993,1780521044000,-500.0,0.00015722,2]
[423953002,1780521044000,-500.0,0.00015722,2]
[423953001,1780521044000,-505.00000006,0.00015722,2]
[423953004,1780521044000,-286.52241399,0.00015723,2]
[423952992,1780521044000,-500.0,0.00015722,2]
[423952995,1780521044000,-500.0,0.00015722,2]
[423952989,1780521044000,-500.0,0.00015722,2]
[423952994,1780521044000,-502.05715644,0.00015722,2]
[423953003,1780521044000,-500.0,0.00015723,2]
[423952996,1780521044000,-623.53674622,0.00015722,2]
[423952999,1780521044000,-500.0,0.00015722,2]
[423953000,1780521044000,-500.0,0.00015722,2]
[423952998,1780521044000,-501.81024904,0.00015722,2]
[423953005,1780521044000,-500.0,0.00015723,2]
[423953012,1780521044000,-500.0,0.0001589,2]
[423953010,1780521044000,-500.0,0.0001589,2]
[423953011,1780521044000,-500.0,0.0001589,2]
[423953009,1780521044000,-500.0,0.0001589,2]
[423953007,1780521044000,-500.0,0.0001589,2]
[423953008,1780521044000,-500.0,0.0001589,2]
[423953006,1780521044000,-494.11767632,0.0001589,2]
[423952997,1780521044000,-502.01584976,0.00015722,2]
[423952982,1780521044000,-500.0,0.00015722,2]
[423952946,1780521044000,-500.0,0.00015722,2]
[423952990,1780521044000,-500.0,0.00015722,2]
[423952955,1780521044000,-500.0,0.00015722,2]
[423952951,1780521044000,-500.0,0.00015722,2]
[423952953,1780521044000,-500.0,0.00015722,2]
[423952949,1780521044000,-500.0,0.00015722,2]
[423952952,1780521044000,-487.2654754,0.00015722,2]
[423952950,1780521044000,-500.0,0.00015722,2]
[423952958,1780521044000,-500.0,0.00015722,2]
[423952985,1780521044000,-500.0,0.00015722,2]
[423952969,1780521044000,-500.0,0.00015722,2]
[423952970,1780521044000,-500.0,0.00015722,2]
[423952959,1780521044000,-292.27867845,0.00015722,2]
[423952962,1780521044000,-500.0,0.00015722,2]
[423952963,1780521044000,-500.0,0.00015722,2]
[423952961,1780521044000,-500.0,0.00015722,2]
[423952968,1780521044000,-500.0,0.00015722,2]
[423952965,1780521044000,-500.0,0.00015722,2]
[423952960,1780521044000,-500.45,0.00015722,2]
[423952980,1780521044000,-500.0,0.00015722,2]
[423952971,1780521044000,-500.0,0.00015722,2]
[423952976,1780521044000,-500.0,0.00015722,2]
[423952977,1780521044000,-500.0,0.00015722,2]
[423952979,1780521044000,-500.0,0.00015722,2]
[423952974,1780521044000,-500.0,0.00015722,2]
[423952973,1780521044000,-500.0,0.00015722,2]
[423952972,1780521044000,-500.0,0.00015722,2]
[423952978,1780521044000,-500.0,0.00015722,2]
[423952966,1780521044000,-500.0,0.00015722,2]
[423952964,1780521044000,-500.0,0.00015722,2]
[423952967,1780521044000,-502.60095045,0.00015722,2]
[423952975,1780521044000,-500.0,0.00015722,2]
[423953058,1780521045000,-500.0,0.00015995,2]
[423953060,1780521045000,-361.15243636,0.00015995,2]
[423953056,1780521045000,-500.0,0.00015995,2]
[423953055,1780521045000,-403.13321532,0.00015995,2]
[423953054,1780521045000,-500.0,0.00015995,2]
[423953057,1780521045000,-500.0,0.00015995,2]
[423953047,1780521045000,-500.0,0.00015995,2]
[423953051,1780521045000,-500.0,0.00015995,2]
[423953046,1780521045000,-500.0,0.00015995,2]
[423953052,1780521045000,-500.0,0.00015995,2]
[423953050,1780521045000,-500.0,0.00015995,2]
[423953049,1780521045000,-584.84,0.00015995,2]
[423953053,1780521045000,-500.0,0.00015995,2]
[423953064,1780521045000,-500.0,0.00015996,2]
[423953074,1780521045000,-500.0,0.00015996,2]
[423953071,1780521045000,-563.29658134,0.00015996,2]
[423953062,1780521045000,-500.0,0.00015996,2]
[423953066,1780521045000,-500.0,0.00015996,2]
[423953061,1780521045000,-604.54738571,0.00015995,2]
[423953059,1780521045000,-500.0,0.00015995,2]
[423953065,1780521045000,-500.0,0.00015996,2]
[423953067,1780521045000,-500.0,0.00015996,2]
[423953069,1780521045000,-500.0,0.00015996,2]
[423953063,1780521045000,-500.0,0.00015996,2]
[423953072,1780521045000,-500.0,0.00015996,2]
[423953075,1780521045000,-500.0,0.00015996,2]
[423953076,1780521045000,-500.0,0.00015996,2]
[423953048,1780521045000,-500.0,0.00015995,2]
[423953068,1780521045000,-500.0,0.00015996,2]
[423953045,1780521045000,-500.0,0.00015995,2]
[423953028,1780521045000,-500.0,0.00015916,2]
[423953034,1780521045000,-500.0,0.00015916,2]
[423953014,1780521045000,-518.64,0.0001589,2]
[423953015,1780521045000,-500.0,0.0001589,2]
[423953016,1780521045000,-500.0,0.0001589,2]
[423953013,1780521045000,-1740.0,0.0001589,2]
[423953017,1780521045000,-500.0,0.0001589,2]
[423953018,1780521045000,-500.0,0.0001589,2]
[423953022,1780521045000,-500.0,0.0001589,2]
[423953019,1780521045000,-1129.16,0.0001589,2]
[423953020,1780521045000,-500.0,0.0001589,2]
[423953023,1780521045000,-648.39,0.0001589,2]
[423953021,1780521045000,-1536.58,0.0001589,2]
[423953024,1780521045000,-500.0,0.0001589,2]
[423953025,1780521045000,-500.0,0.0001589,2]
[423953026,1780521045000,-500.0,0.0001589,2]
[423953038,1780521045000,-676.0566,0.00015916,2]
[423953027,1780521045000,-500.0,0.00015916,2]
[423953030,1780521045000,-500.0,0.00015916,2]
[423953073,1780521045000,-252.34563867,0.00015996,2]
[423953040,1780521045000,-579.58,0.00015916,2]
[423953032,1780521045000,-500.0,0.00015916,2]
[423953044,1780521045000,-237.682116,0.00015944,2]
[423953031,1780521045000,-500.0,0.00015916,2]
[423953043,1780521045000,-197.375592,0.00015944,2]
[423953042,1780521045000,-500.0,0.00015916,2]
[423953041,1780521045000,-500.0,0.00015916,2]
[423953033,1780521045000,-863.81,0.00015916,2]
[423953039,1780521045000,-500.0,0.00015916,2]
[423953037,1780521045000,-1559.31,0.00015916,2]
[423953035,1780521045000,-500.0,0.00015916,2]
[423953036,1780521045000,-500.0,0.00015916,2]
[423953029,1780521045000,-846.3,0.00015916,2]
[423953077,1780521045000,-500.0,0.00015996,2]
[423953070,1780521045000,-500.0,0.00015996,2]
[423953142,1780521045000,-500.0,0.00016334,2]
[423953122,1780521045000,-579.58,0.0001619,2]
[423953113,1780521045000,-160.93,0.0001619,2]
[423953124,1780521045000,-500.0,0.0001619,2]
[423953115,1780521045000,-863.81,0.0001619,2]
[423953114,1780521045000,-500.0,0.0001619,2]
[423953117,1780521045000,-500.0,0.0001619,2]
[423953118,1780521045000,-500.0,0.0001619,2]
[423953116,1780521045000,-500.0,0.0001619,2]
[423953121,1780521045000,-500.0,0.0001619,2]
[423953120,1780521045000,-676.0566,0.0001619,2]
[423953125,1780521045000,-466.58,0.00016269,2]
[423953126,1780521045000,-571.68,0.00016269,2]
[423953127,1780521045000,-500.0,0.00016269,2]
[423953134,1780521045000,-500.0,0.00016334,2]
[423953119,1780521045000,-1559.31,0.0001619,2]
[423953128,1780521045000,-500.0,0.00016269,2]
[423953129,1780521045000,-500.0,0.00016269,2]
[423953135,1780521045000,-500.0,0.00016334,2]
[423953136,1780521045000,-500.0,0.00016334,2]
[423953131,1780521045000,-187.21775574,0.00016278,2]
[423953133,1780521045000,-500.0,0.00016334,2]
[423953132,1780521045000,-191.3743,0.00016327,2]
[423953137,1780521045000,-500.0,0.00016334,2]
[423953138,1780521045000,-500.0,0.00016334,2]
[423953139,1780521045000,-500.0,0.00016334,2]
[423953144,1780521045000,-500.0,0.00016334,2]
[423953141,1780521045000,-518.58396802,0.00016334,2]
[423953143,1780521045000,-500.0,0.00016334,2]
[423953082,1780521045000,-200.0,0.00016091,2]
[423953140,1780521045000,-500.0,0.00016334,2]
[423953130,1780521045000,-162.24746861,0.00016278,2]
[423953112,1780521045000,-846.3,0.0001619,2]
[423953078,1780521045000,-500.0,0.00015996,2]
[423953110,1780521045000,-500.0,0.0001619,2]
[423953123,1780521045000,-500.0,0.0001619,2]
[423953080,1780521045000,-286.79392407,0.00016045,2]
[423953085,1780521045000,-321.730938,0.00016136,2]
[423953079,1780521045000,-168.401005,0.00016007,2]
[423953081,1780521045000,-336.76760126,0.00016068,2]
[423953083,1780521045000,-1186.35722171,0.00016091,2]
[423953087,1780521045000,-1934.731424,0.00016163,2]
[423953096,1780521045000,-500.0,0.00016164,2]
[423953086,1780521045000,-483.461877,0.00016136,2]
[423953089,1780521045000,-500.0,0.00016164,2]
[423953099,1780521045000,-1129.16,0.00016164,2]
[423953097,1780521045000,-500.0,0.00016164,2]
[423953098,1780521045000,-500.0,0.00016164,2]
[423953091,1780521045000,-500.0,0.00016164,2]
[423953090,1780521045000,-303.06421885,0.00016164,2]
[423953084,1780521045000,-160.0,0.00016136,2]
[423953092,1780521045000,-500.0,0.00016164,2]
[423953088,1780521045000,-38154.1018721,0.00016163,2]
[423953104,1780521045000,-500.0,0.00016164,2]
[423953107,1780521045000,-168.401005,0.00016167,2]
[423953109,1780521045000,-163.918701,0.00016167,2]
[423953105,1780521045000,-500.0,0.00016164,2]
[423953108,1780521045000,-198.812285,0.00016167,2]
[423953106,1780521045000,-500.0,0.00016164,2]
[423953111,1780521045000,-500.0,0.0001619,2]
[423953103,1780521045000,-648.39,0.00016164,2]
[423953101,1780521045000,-1536.58,0.00016164,2]
[423953100,1780521045000,-500.0,0.00016164,2]
[423953093,1780521045000,-1740.0,0.00016164,2]
[423953094,1780521045000,-518.64,0.00016164,2]
[423953102,1780521045000,-500.0,0.00016164,2]
[423953095,1780521045000,-256.24556571,0.00016164,2]
[423953191,1780521046000,-1000.0,0.00016334,2]
[423953185,1780521046000,-500.0,0.00016334,2]
[423953184,1780521046000,-500.0,0.00016334,2]
[423953186,1780521046000,-500.0,0.00016334,2]
[423953183,1780521046000,-500.0,0.00016334,2]
[423953180,1780521046000,-500.0,0.00016334,2]
[423953178,1780521046000,-500.0,0.00016334,2]
[423953189,1780521046000,-1000.0,0.00016334,2]
[423953188,1780521046000,-341.32993513,0.00016334,2]
[423953190,1780521046000,-1000.0,0.00016334,2]
[423953193,1780521046000,-1000.0,0.00016334,2]
[423953181,1780521046000,-500.0,0.00016334,2]
[423953187,1780521046000,-500.0,0.00016334,2]
[423953200,1780521046000,-1000.0,0.00016334,2]
[423953199,1780521046000,-1000.0,0.00016334,2]
[423953196,1780521046000,-1000.0,0.00016334,2]
[423953197,1780521046000,-1000.0,0.00016334,2]
[423953194,1780521046000,-1000.0,0.00016334,2]
[423953195,1780521046000,-1000.0,0.00016334,2]
[423953201,1780521046000,-1000.0,0.00016334,2]
[423953198,1780521046000,-1000.0,0.00016334,2]
[423953204,1780521046000,-1000.0,0.00016334,2]
[423953192,1780521046000,-1000.0,0.00016334,2]
[423953206,1780521046000,-1000.0,0.00016334,2]
[423953207,1780521046000,-1000.0,0.00016334,2]
[423953218,1780521046000,-518.64,0.00016438,2]
[423953224,1780521046000,-500.0,0.00016438,2]
[423953182,1780521046000,-500.0,0.00016334,2]
[423953202,1780521046000,-1000.0,0.00016334,2]
[423953177,1780521046000,-500.0,0.00016334,2]
[423953162,1780521046000,-151.5,0.00016334,2]
[423953175,1780521046000,-314.05410148,0.00016334,2]
[423953147,1780521046000,-250.28998332,0.00016334,2]
[423953145,1780521046000,-500.0,0.00016334,2]
[423953146,1780521046000,-151.5,0.00016334,2]
[423953148,1780521046000,-209.71611797,0.00016334,2]
[423953149,1780521046000,-151.5,0.00016334,2]
[423953151,1780521046000,-500.0,0.00016334,2]
[423953153,1780521046000,-500.0,0.00016334,2]
[423953152,1780521046000,-175.4911037,0.00016334,2]
[423953150,1780521046000,-500.0,0.00016334,2]
[423953156,1780521046000,-500.0,0.00016334,2]
[423953154,1780521046000,-500.0,0.00016334,2]
[423953161,1780521046000,-572.7054161,0.00016334,2]
[423953160,1780521046000,-500.0,0.00016334,2]
[423953172,1780521046000,-500.0,0.00016334,2]
[423953163,1780521046000,-151.5,0.00016334,2]
[423953158,1780521046000,-500.0,0.00016334,2]
[423953157,1780521046000,-162.02021921,0.00016334,2]
[423953164,1780521046000,-151.5,0.00016334,2]
[423953165,1780521046000,-177.86107531,0.00016334,2]
[423953155,1780521046000,-500.0,0.00016334,2]
[423953166,1780521046000,-500.0,0.00016334,2]
[423953167,1780521046000,-500.0,0.00016334,2]
[423953169,1780521046000,-500.0,0.00016334,2]
[423953168,1780521046000,-500.0,0.00016334,2]
[423953174,1780521046000,-151.5,0.00016334,2]
[423953170,1780521046000,-500.0,0.00016334,2]
[423953171,1780521046000,-500.0,0.00016334,2]
[423953173,1780521046000,-524.64849091,0.00016334,2]
[423953159,1780521046000,-500.0,0.00016334,2]
[423953213,1780521046000,-500.0,0.00016438,2]
[423953225,1780521046000,-1129.16,0.00016438,2]
[423953211,1780521046000,-500.0,0.00016438,2]
[423953255,1780521046000,-500.0,0.00016712,2]
[423953261,1780521046000,-648.39,0.00016712,2]
[423953260,1780521046000,-500.0,0.00016712,2]
[423953257,1780521046000,-1129.16,0.00016712,2]
[423953258,1780521046000,-500.0,0.00016712,2]
[423953264,1780521046000,-500.0,0.00016712,2]
[423953259,1780521046000,-1536.58,0.00016712,2]
[423953262,1780521046000,-500.0,0.00016712,2]
[423953263,1780521046000,-500.0,0.00016712,2]
[423953265,1780521046000,-246.55,0.00016738,2]
[423953256,1780521046000,-500.0,0.00016712,2]
[423953266,1780521046000,-846.3,0.00016738,2]
[423953267,1780521046000,-863.81,0.00016738,2]
[423953268,1780521046000,-500.0,0.00016738,2]
[423953270,1780521046000,-500.0,0.00016738,2]
[423953277,1780521046000,-160.0,0.00016749,2]
[423953269,1780521046000,-500.0,0.00016738,2]
[423953275,1780521046000,-500.0,0.00016738,2]
[423953271,1780521046000,-1559.31,0.00016738,2]
[423953274,1780521046000,-579.58,0.00016738,2]
[423953276,1780521046000,-500.0,0.00016738,2]
[423953272,1780521046000,-676.0566,0.00016738,2]
[423953278,1780521046000,-173.879239,0.00016749,2]
[423953279,1780521046000,-187.758478,0.00016749,2]
[423953280,1780521046000,-151.0,0.000168,2]
[423953273,1780521046000,-500.0,0.00016738,2]
[423953281,1780521046000,-384.87725858,0.00016813,2]
[423953283,1780521046000,-151.0,0.00016818,2]
[423953209,1780521046000,-487.28668294,0.00016334,2]
[423953254,1780521046000,-500.0,0.00016712,2]
[423953253,1780521046000,-518.64,0.00016712,2]
[423953282,1780521046000,-500.0,0.00016817,2]
[423953246,1780521046000,-500.0,0.00016543,2]
[423953245,1780521046000,-500.0,0.00016464,2]
[423953222,1780521046000,-500.0,0.00016438,2]
[423953220,1780521046000,-500.0,0.00016438,2]
[423953214,1780521046000,-500.0,0.00016438,2]
[423953226,1780521046000,-500.0,0.00016438,2]
[423953228,1780521046000,-500.0,0.00016438,2]
[423953216,1780521046000,-1740.0,0.00016438,2]
[423953231,1780521046000,-500.0,0.00016438,2]
[423953230,1780521046000,-500.0,0.00016438,2]
[423953229,1780521046000,-648.39,0.00016438,2]
[423953232,1780521046000,-500.0,0.00016438,2]
[423953233,1780521046000,-500.0,0.00016464,2]
[423953234,1780521046000,-360.49,0.00016464,2]
[423953236,1780521046000,-863.81,0.00016464,2]
[423953227,1780521046000,-1536.58,0.00016438,2]
[423953240,1780521046000,-1559.31,0.00016464,2]
[423953235,1780521046000,-846.3,0.00016464,2]
[423953244,1780521046000,-500.0,0.00016464,2]
[423953252,1780521046000,-1740.0,0.00016712,2]
[423953248,1780521046000,-191.267164,0.00016686,2]
[423953250,1780521046000,-500.0,0.00016712,2]
[423953243,1780521046000,-579.58,0.00016464,2]
[423953251,1780521046000,-500.0,0.00016712,2]
[423953247,1780521046000,-151.0,0.000166,2]
[423953238,1780521046000,-500.0,0.00016464,2]
[423953237,1780521046000,-500.0,0.00016464,2]
[423953242,1780521046000,-500.0,0.00016464,2]
[423953241,1780521046000,-676.0566,0.00016464,2]
[423953239,1780521046000,-500.0,0.00016464,2]
[423953249,1780521046000,-500.0,0.00016712,2]
[423953334,1780521047000,-500.0,0.0001726,2]
[423953332,1780521047000,-1740.0,0.0001726,2]
[423953325,1780521047000,-160.0,0.00017231,2]
[423953330,1780521047000,-500.0,0.0001726,2]
[423953333,1780521047000,-518.64,0.0001726,2]
[423953316,1780521047000,-500.0,0.00017012,2]